[Event "Chess Super League 2021"]
[Site "Online"]
[Date "2021.10.12"]
[Round "2.2"]
[White "Arpita, Mukherjee"]
[Black "Savitha Shri B"]
[Result "1-0"]
[ECO "D01"]
[WhiteElo "2229"]
[BlackElo "2281"]
[Annotator "NA"]
[PlyCount "63"]
[EventDate "2021.10.11"]
[EventType "team-tourn"]
[EventCountry "NET"]
[SourceTitle "playchess.com"]
[Source "ChessBase"]
[SourceQuality "1"]
[TimeControl "900+10"]

1. d4 {[%emt 0:00:13]} Nf6 {[%emt 0:00:14]} 2. Bf4 {[%emt 0:00:03]} g6 {[%emt 0:00:04]} 3. Nc3 {[%emt 0:00:03]} d5 {[%emt 0:00:04]} 4. Qd2 {[%emt 0:00:03]} Bg7 {[%emt 0:01:10]} 5. Bh6 {[%emt 0:00:03]} Bxh6 {[%emt 0:00:10]} 6. Qxh6 {[%emt 0:00:03]} Bf5 {[%emt 0:00:02]} 7. O-O-O {[%emt 0:00:37]} Nc6 {[%emt 0:00:24]} 8. a3 {[%emt 0:01:00]} Qd6 {[%emt 0:00:44]} 9. f3 {[%emt 0:00:47]} a6 {[%emt 0:02:00]} 10. g4 {[%emt 0:01:27]} Bd7 {[%emt 0:01:37]} 11. Nh3 {[%emt 0:00:44]} O-O-O {[%emt 0:00:29]} 12. Qf4 {[%emt 0:01:11]} Qxf4+ {[%emt 0:03:17]} 13. Nxf4 {[%emt 0:00:00]} e6 {[%emt 0:00:41]} 14. h4 {[%emt 0:01:32]} h6 {[%emt 0:02:41]} 15. e3 {[%emt 0:01:14]} e5 {[%emt 0:01:24]} 16. Nfxd5 {[%emt 0:04:03]} Nxd5 {[%emt 0:00:04]} 17. Nxd5 {[%emt 0:00:00]} exd4 {[%emt 0:00:02]} 18. exd4 {[%emt 0:00:43]} Be6 {[%emt 0:00:11]} 19. Nf4 {[%emt 0:00:36]} Nxd4 {[%emt 0:00:14]} 20. Nxe6 {[%emt 0:00:02]} fxe6 {[%emt 0:00:26]} 21. Bd3 {[%emt 0:00:55]} Nxf3 {[%emt 0:00:24]} 22. Bxg6 {[%emt 0:00:05]} Rxd1+ {[%emt 0:00:22]} 23. Kxd1 {[%emt 0:00:09]} Ne5 {[%emt 0:00:20]} 24. Bh5 {[%emt 0:00:23]} Rg8 {[%emt 0:00:03]} 25. Re1 {[%emt 0:00:38]} Nxg4 {[%emt 0:00:49]} 26. Rxe6 {[%emt 0:00:24]} Nf2+ {[%emt 0:00:25]} 27. Ke2 {[%emt 0:01:07]} Nh1 {[%emt 0:00:33]} 28. Rxh6 {[%emt 0:00:22]} Ng3+ {[%emt 0:00:01]} 29. Kf3 {[%emt 0:00:15]} Nf5 {[%emt 0:00:13]} 30. Bg4 {[%emt 0:00:16]} Rxg4 {[%emt 0:00:44]} 31. Rh8+ {[%emt 0:00:01]} Kd7 {[%emt 0:00:11]} 32. Kxg4 {[%emt 0:00:02]} 1-0

[Event "Chess Super League 2021"]
[Site "Online"]
[Date "2021.10.12"]
[Round "2.3"]
[White "Salonika, Saina"]
[Black "Mrudul Dehankar"]
[Result "0-1"]
[ECO "B01"]
[WhiteElo "2206"]
[BlackElo "2256"]
[Annotator "NA"]
[PlyCount "82"]
[EventDate "2021.10.11"]
[EventType "team-tourn"]
[EventCountry "NET"]
[SourceTitle "playchess.com"]
[Source "ChessBase"]
[SourceQuality "1"]
[TimeControl "900+10"]

1. e4 {[%emt 0:00:12]} d5 {[%emt 0:00:16]} 2. exd5 {[%emt 0:00:06]} Nf6 {[%emt 0:00:04]} 3. d4 {[%emt 0:00:08]} Bg4 {[%emt 0:00:03]} 4. Be2 {[%emt 0:00:50]} Bxe2 {[%emt 0:00:13]} 5. Qxe2 {[%emt 0:00:35]} Qxd5 {[%emt 0:00:04]} 6. Nf3 {[%emt 0:00:03]} e6 {[%emt 0:00:38]} 7. Nc3 {[%emt 0:01:10]} Bb4 {[%emt 0:02:52]} 8. O-O {[%emt 0:00:33]} Bxc3 {[%emt 0:03:08]} 9. bxc3 {[%emt 0:00:03]} O-O {[%emt 0:00:06]} 10. c4 {[%emt 0:00:14]} Qh5 {[%emt 0:00:08]} 11. Bf4 {[%emt 0:00:26]} c6 {[%emt 0:01:24]} 12. Rab1 {[%emt 0:00:50]} b6 {[%emt 0:00:06]} 13. Qe5 {[%emt 0:03:59]} Qg6 {[%emt 0:01:15]} 14. Qc7 {[%emt 0:00:39]} Nbd7 {[%emt 0:04:57]} 15. Ne5 {[%emt 0:02:34]} Nxe5 {[%emt 0:00:08]} 16. Bxe5 {[%emt 0:00:03]} Rfc8 {[%emt 0:00:33]} 17. Qe7 {[%emt 0:00:21]} Ng4 {[%emt 0:00:17]} 18. f4 {[%emt 0:02:32]} Re8 {[%emt 0:01:30]} 19. Qg5 {[%emt 0:02:01]} f6 {[%emt 0:00:15]} 20. Qxg6 {[%emt 0:00:03]} hxg6 {[%emt 0:00:01]} 21. Bd6 {[%emt 0:00:50]} Ne3 {[%emt 0:00:02]} 22. Rf3 {[%emt 0:00:12]} Nxc4 {[%emt 0:00:02]} 23. Bb4 {[%emt 0:00:02]} a5 {[%emt 0:00:30]} 24. Be1 {[%emt 0:00:07]} Red8 {[%emt 0:00:12]} 25. c3 {[%emt 0:00:13]} b5 {[%emt 0:00:06]} 26. Rf2 {[%emt 0:00:07]} Kf7 {[%emt 0:00:04]} 27. a4 {[%emt 0:00:15]} bxa4 {[%emt 0:00:08]} 28. Ra2 {[%emt 0:00:08]} a3 {[%emt 0:00:05]} 29. Rb7+ {[%emt 0:00:06]} Kf8 {[%emt 0:00:03]} 30. Rc7 {[%emt 0:00:24]} Rdc8 {[%emt 0:00:05]} 31. Rxc8+ {[%emt 0:00:05]} Rxc8 {[%emt 0:00:01]} 32. Kf2 {[%emt 0:00:13]} Rb8 {[%emt 0:00:02]} 33. Kf3 {[%emt 0:00:01]} Rb2 {[%emt 0:00:12]} 34. Ra1 {[%emt 0:00:02]} a2 {[%emt 0:00:06]} 35. Ke4 {[%emt 0:00:06]} Na3 {[%emt 0:01:01]} 36. c4 {[%emt 0:00:18]} Nc2 {[%emt 0:00:03]} 37. Bc3 {[%emt 0:00:02]} Nxa1 {[%emt 0:00:13]} 38. Bxb2 {[%emt 0:00:03]} Nb3 {[%emt 0:00:01]} 39. Kd3 {[%emt 0:00:14]} a1=Q {[%emt 0:00:01]} 40. Bxa1 {[%emt 0:00:01]} Nxa1 {[%emt 0:00:02]} 41. Kc3 {[%emt 0:00:04]} a4 {[%emt 0:00:01]} 0-1

[Event "Chess Super League 2021"]
[Site "Online"]
[Date "2021.10.13"]
[Round "3.1"]
[White "Muzychuk, Anna"]
[Black "Tania, Sachdev"]
[Result "1-0"]
[ECO "C55"]
[WhiteElo "2533"]
[BlackElo "2392"]
[Annotator "ChessBase"]
[PlyCount "67"]
[EventDate "2021.10.11"]
[EventType "team-tourn"]
[EventCountry "NET"]
[SourceTitle "playchess.com"]
[Source "ChessBase"]
[SourceQuality "1"]
[TimeControl "900+10"]

1. e4 {[%emt 0:00:11]} e5 {[%emt 0:00:16]} 2. Nf3 {[%emt 0:00:04]} Nc6 {[%emt 0:00:03]} 3. Bc4 {[%emt 0:00:04]} Nf6 {[%emt 0:00:07]} 4. d3 {[%emt 0:00:04]} h6 {[%emt 0:00:03]} 5. Nc3 {[%emt 0:01:36]} d6 {[%emt 0:00:59]} 6. a4 {[%emt 0:00:21]} g6 {[%emt 0:01:53]} 7. h3 {[%emt 0:00:24]} Bg7 {[%emt 0:00:02]} 8. a5 {[%emt 0:00:11]} a6 {[%emt 0:00:14]} 9. Be3 {[%emt 0:01:34]} Qe7 {[%emt 0:00:51]} 10. Qd2 {[%emt 0:00:31]} Be6 {[%emt 0:00:14]} 11. O-O {[%emt 0:00:24]} g5 {[%emt 0:01:22]} 12. Nd5 {[%emt 0:01:31]} Bxd5 {[%emt 0:00:38]} 13. exd5 {[%emt 0:00:17]} Nb8 {[%emt 0:01:30]} 14. Rfe1 {[%emt 0:01:58]} Nbd7 {[%emt 0:03:28]} 15. Qb4 {[%emt 0:00:32]} O-O {[%emt 0:01:27]} 16. Qxb7 {[%emt 0:00:40]} g4 {[%emt 0:01:05]} 17. Nh4 {[%emt 0:02:47]} gxh3 {[%emt 0:01:52]} 18. Qxc7 {[%emt 0:00:08]} Rfc8 {[%emt 0:00:56]} 19. Nf5 {[%emt 0:00:06]} Rxc7 {[%emt 0:00:03]} 20. Nxe7+ {[%emt 0:00:01]} Kf8 {[%emt 0:00:01]} 21. Nf5 {[%emt 0:00:16]} hxg2 {[%emt 0:00:16]} 22. Nxd6 {[%emt 0:00:14]} Rb8 {[%emt 0:00:26]} 23. Reb1 {[%emt 0:00:11]} Ng4 {[%emt 0:00:10]} 24. Kxg2 {[%emt 0:00:10]} Nxe3+ {[%emt 0:00:29]} 25. fxe3 {[%emt 0:00:02]} Bf6 {[%emt 0:00:01]} 26. e4 {[%emt 0:00:48]} Bg5 {[%emt 0:00:02]} 27. c3 {[%emt 0:00:12]} Nf6 {[%emt 0:00:03]} 28. Bxa6 {[%emt 0:00:15]} Ke7 {[%emt 0:00:30]} 29. Nf5+ {[%emt 0:00:06]} Kd7 {[%emt 0:00:02]} 30. Kf3 {[%emt 0:00:26]} Nh5 {[%emt 0:00:04]} 31. Bc4 {[%emt 0:00:12]} f6 {[%emt 0:00:18]} 32. b4 {[%emt 0:00:33]} Nf4 {[%emt 0:00:22]} 33. b5 {[%emt 0:00:43]} h5 {[%emt 0:00:25]} 34. b6 {[%emt 0:00:08]} 1-0

[Event "Chess Super League 2021"]
[Site "Online"]
[Date "2021.10.13"]
[Round "3.1"]
[White "Raja Harshit"]
[Black "Iniyan, P."]
[Result "0-1"]
[ECO "B90"]
[WhiteElo "2494"]
[BlackElo "2529"]
[Annotator "ChessBase"]
[PlyCount "128"]
[EventDate "2021.10.11"]
[EventType "team-tourn"]
[EventCountry "NET"]
[SourceTitle "playchess.com"]
[Source "ChessBase"]
[SourceQuality "1"]
[TimeControl "900+10"]

1. e4 {[%emt 0:00:18]} c5 {[%emt 0:00:15]} 2. Nf3 {[%emt 0:00:02]} d6 {[%emt 0:00:06]} 3. d4 {[%emt 0:00:01]} cxd4 {[%emt 0:00:00]} 4. Nxd4 {[%emt 0:00:01]} Nf6 {[%emt 0:00:01]} 5. Nc3 {[%emt 0:00:04]} a6 {[%emt 0:00:01]} 6. Be3 {[%emt 0:00:05]} e5 {[%emt 0:02:21]} 7. Nf3 {[%emt 0:00:03]} Qc7 {[%emt 0:00:05]} 8. Be2 {[%emt 0:00:03]} h6 {[%emt 0:00:13]} 9. O-O {[%emt 0:00:49]} Be7 {[%emt 0:00:11]} 10. a4 {[%emt 0:00:07]} O-O {[%emt 0:00:39]} 11. Nd2 {[%emt 0:00:34]} Be6 {[%emt 0:00:13]} 12. a5 {[%emt 0:00:02]} Nbd7 {[%emt 0:00:29]} 13. Re1 {[%emt 0:00:03]} d5 {[%emt 0:00:26]} 14. exd5 {[%emt 0:00:51]} Nxd5 {[%emt 0:00:03]} 15. Nxd5 {[%emt 0:01:11]} Bxd5 {[%emt 0:00:00]} 16. Nc4 {[%emt 0:01:30]} Qc6 {[%emt 0:02:52]} 17. Bg4 {[%emt 0:01:59]} f5 {[%emt 0:01:35]} 18. Bf3 {[%emt 0:01:10]} e4 {[%emt 0:01:31]} 19. Nb6 {[%emt 0:01:13]} Nxb6 {[%emt 0:00:07]} 20. Bxb6 {[%emt 0:00:00]} Bf6 {[%emt 0:00:15]} 21. c4 {[%emt 0:02:32]} Bxc4 {[%emt 0:00:13]} 22. Be2 {[%emt 0:01:56]} Bxb2 {[%emt 0:00:06]} 23. Qc2 {[%emt 0:00:51]} Bxe2 {[%emt 0:00:12]} 24. Qxb2 {[%emt 0:00:02]} Bh5 {[%emt 0:01:47]} 25. Rac1 {[%emt 0:00:06]} Qg6 {[%emt 0:00:01]} 26. Qe5 {[%emt 0:01:23]} Rae8 {[%emt 0:02:17]} 27. Qf4 {[%emt 0:00:07]} Rf7 {[%emt 0:00:48]} 28. Rc3 {[%emt 0:00:29]} Qf6 {[%emt 0:00:09]} 29. Rg3 {[%emt 0:00:50]} g5 {[%emt 0:00:12]} 30. Qd2 {[%emt 0:00:58]} f4 {[%emt 0:00:41]} 31. Rc3 {[%emt 0:00:04]} f3 {[%emt 0:00:34]} 32. Qd4 {[%emt 0:00:26]} Qe6 {[%emt 0:00:41]} 33. h3 {[%emt 0:00:20]} fxg2 {[%emt 0:00:16]} 34. Rg3 {[%emt 0:00:02]} Rf3 {[%emt 0:00:08]} 35. Re3 {[%emt 0:00:23]} Rxg3 {[%emt 0:00:05]} 36. Rxg3 {[%emt 0:00:02]} Bf3 {[%emt 0:00:04]} 37. Kh2 {[%emt 0:00:20]} Rc8 {[%emt 0:00:11]} 38. Qe3 {[%emt 0:00:09]} Qd5 {[%emt 0:00:35]} 39. Bd4 {[%emt 0:00:07]} Kh7 {[%emt 0:00:35]} 40. h4 {[%emt 0:00:22]} Rd8 {[%emt 0:00:10]} 41. Rxf3 {[%emt 0:00:05]} Qxd4 {[%emt 0:00:17]} 42. Rf7+ {[%emt 0:00:03]} Kg6 {[%emt 0:00:01]} 43. Qxd4 {[%emt 0:00:01]} Rxd4 {[%emt 0:00:01]} 44. Rxb7 {[%emt 0:00:01]} gxh4 {[%emt 0:00:07]} 45. Kxg2 {[%emt 0:00:06]} Rd6 {[%emt 0:00:09]} 46. Kh3 {[%emt 0:00:21]} Rf6 {[%emt 0:00:12]} 47. Kg4 {[%emt 0:00:29]} Rxf2 {[%emt 0:00:10]} 48. Re7 {[%emt 0:00:00]} h5+ {[%emt 0:00:28]} 49. Kxh4 {[%emt 0:00:10]} Rf4+ {[%emt 0:00:01]} 50. Kg3 {[%emt 0:00:03]} Rg4+ {[%emt 0:00:04]} 51. Kf2 {[%emt 0:00:01]} Kf5 {[%emt 0:00:03]} 52. Rh7 {[%emt 0:00:18]} Rg5 {[%emt 0:00:54]} 53. Rh6 {[%emt 0:00:05]} Kf4 {[%emt 0:00:02]} 54. Rxa6 {[%emt 0:00:03]} e3+ {[%emt 0:00:01]} 55. Kf1 {[%emt 0:00:04]} Kg3 {[%emt 0:00:04]} 56. Ke2 {[%emt 0:00:06]} h4 {[%emt 0:00:04]} 57. Ra8 {[%emt 0:00:29]} h3 {[%emt 0:00:02]} 58. a6 {[%emt 0:00:08]} h2 {[%emt 0:00:06]} 59. Rh8 {[%emt 0:00:07]} Ra5 {[%emt 0:00:18]} 60. a7 {[%emt 0:00:22]} Rxa7 {[%emt 0:00:22]} 61. Rg8+ {[%emt 0:00:05]} Kf4 {[%emt 0:00:12]} 62. Rf8+ {[%emt 0:00:03]} Ke5 {[%emt 0:00:06]} 63. Re8+ {[%emt 0:00:07]} Kf6 {[%emt 0:00:23]} 64. Rh8 {[%emt 0:00:01]} Ra1 {[%emt 0:00:04]} 0-1

[Event "Chess Super League 2021"]
[Site "Online"]
[Date "2021.10.14"]
[Round "4.1"]
[White "Iniyan, P."]
[Black "Arjun Kalyan"]
[Result "1/2-1/2"]
[ECO "D37"]
[WhiteElo "2529"]
[BlackElo "2537"]
[Annotator "ChessBase"]
[PlyCount "162"]
[EventDate "2021.10.11"]
[EventType "team-tourn"]
[EventCountry "NET"]
[SourceTitle "playchess.com"]
[Source "ChessBase"]
[SourceQuality "1"]
[TimeControl "900+10"]

1. d4 {[%emt 0:00:22]} Nf6 {[%emt 0:00:12]} 2. c4 {[%emt 0:00:02]} e6 {[%emt 0:00:01]} 3. Nf3 {[%emt 0:00:00]} d5 {[%emt 0:00:02]} 4. Nc3 {[%emt 0:00:02]} Nbd7 {[%emt 0:00:02]} 5. Bf4 {[%emt 0:00:24]} Bb4 {[%emt 0:00:06]} 6. e3 {[%emt 0:00:10]} c5 {[%emt 0:00:05]} 7. Be2 {[%emt 0:00:20]} dxc4 {[%emt 0:00:32]} 8. O-O {[%emt 0:01:20]} Bxc3 {[%emt 0:01:31]} 9. bxc3 {[%emt 0:00:00]} Nd5 {[%emt 0:00:05]} 10. Bd6 {[%emt 0:01:34]} Nxc3 {[%emt 0:02:33]} 11. Qc2 {[%emt 0:00:02]} Nxe2+ {[%emt 0:00:12]} 12. Qxe2 {[%emt 0:00:00]} Qb6 {[%emt 0:00:13]} 13. dxc5 {[%emt 0:00:12]} Nxc5 {[%emt 0:00:03]} 14. Be5 {[%emt 0:02:16]} f6 {[%emt 0:01:18]} 15. Bd4 {[%emt 0:00:03]} Qc6 {[%emt 0:01:55]} 16. Qxc4 {[%emt 0:00:25]} b6 {[%emt 0:00:11]} 17. Rfc1 {[%emt 0:00:51]} O-O {[%emt 0:01:26]} 18. Bxc5 {[%emt 0:00:44]} Qxc5 {[%emt 0:00:32]} 19. Qxc5 {[%emt 0:01:18]} bxc5 {[%emt 0:00:02]} 20. Rxc5 {[%emt 0:00:00]} e5 {[%emt 0:00:05]} 21. a4 {[%emt 0:05:04]} Be6 {[%emt 0:01:11]} 22. h4 {[%emt 0:00:09]} Rfc8 {[%emt 0:00:13]} 23. Rac1 {[%emt 0:00:03]} Rxc5 {[%emt 0:00:17]} 24. Rxc5 {[%emt 0:00:00]} Rc8 {[%emt 0:00:01]} 25. Ra5 {[%emt 0:00:04]} Rc7 {[%emt 0:00:10]} 26. Nd2 {[%emt 0:00:02]} Kf7 {[%emt 0:00:15]} 27. f4 {[%emt 0:00:01]} exf4 {[%emt 0:00:09]} 28. exf4 {[%emt 0:00:00]} Ke7 {[%emt 0:00:19]} 29. Kf2 {[%emt 0:00:07]} Bd7 {[%emt 0:00:48]} 30. Ke3 {[%emt 0:02:08]} Rb7 {[%emt 0:01:25]} 31. g3 {[%emt 0:00:28]} h6 {[%emt 0:00:21]} 32. Ne4 {[%emt 0:00:36]} Rb3+ {[%emt 0:01:02]} 33. Kd2 {[%emt 0:00:02]} Rb7 {[%emt 0:00:44]} 34. Nc5 {[%emt 0:00:02]} Rc7 {[%emt 0:00:03]} 35. Ke3 {[%emt 0:00:27]} Bc8 {[%emt 0:00:17]} 36. Kd4 {[%emt 0:00:32]} Kd6 {[%emt 0:00:14]} 37. Ne4+ {[%emt 0:00:15]} Ke7 {[%emt 0:00:02]} 38. Nc3 {[%emt 0:00:21]} Rd7+ {[%emt 0:00:22]} 39. Ke3 {[%emt 0:00:11]} a6 {[%emt 0:00:22]} 40. Nd5+ {[%emt 0:00:47]} Kd6 {[%emt 0:00:16]} 41. Nb6 {[%emt 0:00:15]} Re7+ {[%emt 0:00:04]} 42. Kd4 {[%emt 0:00:02]} Bb7 {[%emt 0:00:07]} 43. Nc4+ {[%emt 0:00:02]} Kd7 {[%emt 0:00:14]} 44. Rc5 {[%emt 0:00:06]} Re4+ {[%emt 0:00:25]} 45. Kd3 {[%emt 0:00:07]} Re1 {[%emt 0:00:14]} 46. Ne3 {[%emt 0:00:27]} Rg1 {[%emt 0:00:21]} 47. g4 {[%emt 0:00:00]} Bf3 {[%emt 0:00:59]} 48. Ra5 {[%emt 0:00:23]} Bb7 {[%emt 0:00:20]} 49. Ke2 {[%emt 0:00:11]} g6 {[%emt 0:00:15]} 50. h5 {[%emt 0:00:12]} gxh5 {[%emt 0:00:28]} 51. Rxh5 {[%emt 0:00:00]} Rh1 {[%emt 0:00:11]} 52. Nf5 {[%emt 0:00:21]} Rxh5 {[%emt 0:00:10]} 53. gxh5 {[%emt 0:00:00]} Ke6 {[%emt 0:00:10]} 54. Nxh6 {[%emt 0:00:13]} f5 {[%emt 0:00:07]} 55. a5 {[%emt 0:00:03]} Kf6 {[%emt 0:00:07]} 56. Ke3 {[%emt 0:00:02]} Bc8 {[%emt 0:00:14]} 57. Kd4 {[%emt 0:00:04]} Kg7 {[%emt 0:00:07]} 58. Nxf5+ {[%emt 0:00:01]} Bxf5 {[%emt 0:00:01]} 59. Ke5 {[%emt 0:00:01]} Bd3 {[%emt 0:00:05]} 60. f5 {[%emt 0:00:02]} Kh6 {[%emt 0:00:07]} 61. f6 {[%emt 0:00:05]} Bc4 {[%emt 0:00:05]} 62. Kd4 {[%emt 0:00:05]} Bf7 {[%emt 0:00:02]} 63. Kc5 {[%emt 0:00:00]} Bxh5 {[%emt 0:00:05]} 64. Kb6 {[%emt 0:00:01]} Be2 {[%emt 0:00:04]} 65. Kc5 {[%emt 0:00:01]} Kg6 {[%emt 0:00:01]} 66. Kb4 {[%emt 0:00:01]} Kxf6 {[%emt 0:00:01]} 67. Kc3 {[%emt 0:00:00]} Ke5 {[%emt 0:00:01]} 68. Kb2 {[%emt 0:00:01]} Kd4 {[%emt 0:00:01]} 69. Ka1 {[%emt 0:00:00]} Kc3 {[%emt 0:00:02]} 70. Kb1 {[%emt 0:00:00]} Kb4 {[%emt 0:00:00]} 71. Ka1 {[%emt 0:00:00]} Kxa5 {[%emt 0:00:03]} 72. Kb1 {[%emt 0:00:01]} Kb4 {[%emt 0:00:01]} 73. Ka1 {[%emt 0:00:00]} a5 {[%emt 0:00:00]} 74. Kb1 {[%emt 0:00:00]} Ka3 {[%emt 0:00:01]} 75. Ka1 {[%emt 0:00:00]} Bc4 {[%emt 0:00:01]} 76. Kb1 {[%emt 0:00:00]} a4 {[%emt 0:00:00]} 77. Ka1 {[%emt 0:00:00]} Kb4 {[%emt 0:00:00]} 78. Kb1 {[%emt 0:00:00]} a3 {[%emt 0:00:01]} 79. Ka1 {[%emt 0:00:00]} a2 {[%emt 0:00:03]} 80. Kb2 {[%emt 0:00:01]} Ka4 {[%emt 0:00:00]} 81. Ka1 {[%emt 0:00:00]} Ka3 {[%emt 0:00:02]} 1/2-1/2

[Event "Chess Super League 2021"]
[Site "Online"]
[Date "2021.10.14"]
[Round "4.1"]
[White "Abdumalik, Zhansaya"]
[Black "Tania, Sachdev"]
[Result "1/2-1/2"]
[ECO "C45"]
[WhiteElo "2507"]
[BlackElo "2392"]
[Annotator "ChessBase"]
[PlyCount "60"]
[EventDate "2021.10.11"]
[EventType "team-tourn"]
[EventCountry "NET"]
[SourceTitle "playchess.com"]
[Source "ChessBase"]
[SourceQuality "1"]
[TimeControl "900+10"]

1. e4 {[%emt 0:00:19]} e5 {[%emt 0:00:14]} 2. Nf3 {[%emt 0:00:01]} Nc6 {[%emt 0:00:01]} 3. d4 {[%emt 0:00:01]} exd4 {[%emt 0:00:04]} 4. Nxd4 {[%emt 0:00:03]} Nf6 {[%emt 0:00:05]} 5. Nxc6 {[%emt 0:00:01]} bxc6 {[%emt 0:00:00]} 6. e5 {[%emt 0:00:01]} Qe7 {[%emt 0:00:07]} 7. Qe2 {[%emt 0:00:01]} Nd5 {[%emt 0:00:02]} 8. c4 {[%emt 0:00:01]} Ba6 {[%emt 0:00:27]} 9. b3 {[%emt 0:00:02]} O-O-O {[%emt 0:01:04]} 10. Bb2 {[%emt 0:00:29]} Re8 {[%emt 0:02:23]} 11. Qd2 {[%emt 0:00:31]} Nb6 {[%emt 0:00:45]} 12. Be2 {[%emt 0:00:21]} f6 {[%emt 0:02:55]} 13. O-O {[%emt 0:00:26]} fxe5 {[%emt 0:03:04]} 14. Qa5 {[%emt 0:00:03]} Bb7 {[%emt 0:01:39]} 15. Qxa7 {[%emt 0:00:04]} c5 {[%emt 0:00:02]} 16. Nc3 {[%emt 0:01:21]} Qg5 {[%emt 0:00:16]} 17. f3 {[%emt 0:01:03]} Qd2 {[%emt 0:00:57]} 18. Rab1 {[%emt 0:00:19]} e4 {[%emt 0:00:06]} 19. a4 {[%emt 0:00:52]} Bd6 {[%emt 0:00:28]} 20. a5 {[%emt 0:02:07]} exf3 {[%emt 0:02:21]} 21. Bxf3 {[%emt 0:00:03]} Bxf3 {[%emt 0:00:21]} 22. Rxf3 {[%emt 0:00:03]} Re1+ {[%emt 0:00:01]} 23. Rxe1 {[%emt 0:01:59]} Qxe1+ {[%emt 0:00:03]} 24. Rf1 {[%emt 0:00:01]} Qh4 {[%emt 0:00:45]} 25. g3 {[%emt 0:03:47]} Bxg3 {[%emt 0:00:03]} 26. hxg3 {[%emt 0:00:01]} Qxg3+ {[%emt 0:00:02]} 27. Kh1 {[%emt 0:00:00]} Qh3+ {[%emt 0:00:06]} 28. Kg1 {[%emt 0:00:01]} Qg3+ {[%emt 0:00:01]} 29. Kh1 {[%emt 0:00:01]} Qh3+ {[%emt 0:00:06]} 30. Kg1 {[%emt 0:00:00]} Qg3+ {[%emt 0:00:01]} 1/2-1/2

[Event "Chess Super League 2021"]
[Site "Online"]
[Date "2021.10.14"]
[Round "4.1"]
[White "Savitha Shri B"]
[Black "Priyanka, K."]
[Result "1-0"]
[ECO "B90"]
[WhiteElo "2281"]
[BlackElo "2218"]
[Annotator "NA"]
[PlyCount "143"]
[EventDate "2021.10.11"]
[EventType "team-tourn"]
[EventCountry "NET"]
[SourceTitle "playchess.com"]
[Source "ChessBase"]
[SourceQuality "1"]
[TimeControl "900+10"]

1. e4 {[%emt 0:00:12]} c5 {[%emt 0:00:12]} 2. Nf3 {[%emt 0:00:01]} d6 {[%emt 0:00:01]} 3. d4 {[%emt 0:00:02]} cxd4 {[%emt 0:00:01]} 4. Nxd4 {[%emt 0:00:00]} Nf6 {[%emt 0:00:02]} 5. Nc3 {[%emt 0:00:02]} a6 {[%emt 0:00:01]} 6. Nb3 {[%emt 0:00:00]} Nbd7 {[%emt 0:00:46]} 7. g4 {[%emt 0:00:33]} h6 {[%emt 0:02:40]} 8. Bg2 {[%emt 0:00:29]} e5 {[%emt 0:01:18]} 9. h4 {[%emt 0:01:15]} Be7 {[%emt 0:01:51]} 10. g5 {[%emt 0:02:55]} hxg5 {[%emt 0:01:04]} 11. hxg5 {[%emt 0:00:43]} Rxh1+ {[%emt 0:00:07]} 12. Bxh1 {[%emt 0:00:00]} Nh7 {[%emt 0:00:11]} 13. g6 {[%emt 0:02:27]} fxg6 {[%emt 0:00:24]} 14. Be3 {[%emt 0:00:58]} Ndf6 {[%emt 0:01:00]} 15. Bf3 {[%emt 0:01:12]} Be6 {[%emt 0:02:29]} 16. Qe2 $11 {[%emt 0:01:08]} b5 {[%emt 0:02:00]} 17. O-O-O {[%emt 0:00:59]} Qc7 {[%emt 0:00:19]} 18. Rg1 {[%emt 0:01:12]} Nf8 {[%emt 0:00:21]} 19. Qd2 {[%emt 0:01:12]} Rc8 {[%emt 0:00:19]} 20. Kb1 {[%emt 0:00:19]} b4 {[%emt 0:00:34]} 21. Na4 {[%emt 0:00:40]} a5 {[%emt 0:00:16]} 22. Rc1 {[%emt 0:01:03]} Qc6 {[%emt 0:01:35]} 23. Nb6 {[%emt 0:00:17]} Rb8 {[%emt 0:00:02]} 24. Nd5 {[%emt 0:00:36]} Bxd5 {[%emt 0:00:09]} 25. exd5 {[%emt 0:00:04]} Qb5 {[%emt 0:00:06]} 26. c4 {[%emt 0:00:06]} bxc3 {[%emt 0:00:07]} 27. Rxc3 {[%emt 0:00:09]} a4 {[%emt 0:00:12]} 28. Nc1 {[%emt 0:00:04]} e4 {[%emt 0:00:17]} 29. Be2 {[%emt 0:00:01]} Qxd5 {[%emt 0:00:01]} 30. Qc2 {[%emt 0:00:00]} Qa5 {[%emt 0:00:56]} 31. Bd2 {[%emt 0:00:03]} Qa8 {[%emt 0:00:19]} 32. Rc4 {[%emt 0:00:48]} a3 {[%emt 0:00:11]} 33. Nb3 {[%emt 0:00:23]} Ne6 {[%emt 0:00:18]} 34. f3 {[%emt 0:00:10]} d5 {[%emt 0:00:12]} 35. Rc6 {[%emt 0:00:21]} Nd4 {[%emt 0:00:11]} 36. Nxd4 {[%emt 0:00:01]} Rxb2+ {[%emt 0:00:02]} 37. Qxb2 {[%emt 0:00:01]} axb2 {[%emt 0:00:00]} 38. Bb5 {[%emt 0:00:08]} Kf7 {[%emt 0:00:02]} 39. Ne6 {[%emt 0:00:08]} g5 {[%emt 0:00:35]} 40. Nxg5+ {[%emt 0:00:02]} Kg6 {[%emt 0:00:01]} 41. fxe4 {[%emt 0:00:03]} dxe4 {[%emt 0:00:04]} 42. Nxe4 {[%emt 0:00:12]} Qb7 {[%emt 0:00:11]} 43. a4 {[%emt 0:00:03]} Qb8 {[%emt 0:00:25]} 44. Kxb2 {[%emt 0:00:31]} Qe5+ {[%emt 0:00:05]} 45. Nc3 {[%emt 0:00:01]} Qd4 {[%emt 0:00:06]} 46. Kc2 {[%emt 0:00:09]} Bb4 {[%emt 0:00:10]} 47. Rc4 {[%emt 0:00:08]} Qd6 {[%emt 0:00:13]} 48. Rh4 {[%emt 0:00:34]} Bxc3 {[%emt 0:00:14]} 49. Bxc3 {[%emt 0:00:05]} Qg3 {[%emt 0:00:07]} 50. Bd3+ {[%emt 0:00:04]} Kf7 {[%emt 0:00:03]} 51. Bc4+ {[%emt 0:00:01]} Kg6 {[%emt 0:00:13]} 52. Bd3+ {[%emt 0:00:02]} Kf7 {[%emt 0:00:24]} 53. Rd4 {[%emt 0:00:25]} Qf2+ {[%emt 0:00:01]} 54. Kb3 {[%emt 0:00:03]} g5 {[%emt 0:00:07]} 55. a5 {[%emt 0:00:06]} g4 {[%emt 0:00:17]} 56. a6 {[%emt 0:00:03]} g3 {[%emt 0:00:07]} 57. a7 {[%emt 0:00:12]} Qf3 {[%emt 0:00:03]} 58. Ra4 {[%emt 0:00:25]} Qb7+ {[%emt 0:00:14]} 59. Bb4 {[%emt 0:00:07]} Qa8 {[%emt 0:00:08]} 60. Bc5 {[%emt 0:00:27]} g2 {[%emt 0:00:11]} 61. Rf4 {[%emt 0:00:20]} Qb7+ {[%emt 0:00:30]} 62. Rb4 {[%emt 0:00:16]} Qf3 {[%emt 0:00:02]} 63. Kc2 {[%emt 0:00:08]} Nd5 {[%emt 0:00:10]} 64. Rb7+ {[%emt 0:00:04]} Ke6 {[%emt 0:00:07]} 65. a8=Q {[%emt 0:00:05]} Nb4+ {[%emt 0:00:08]} 66. Bxb4 {[%emt 0:00:11]} Qf2+ {[%emt 0:00:03]} 67. Bd2 {[%emt 0:00:03]} Qc5+ {[%emt 0:00:10]} 68. Bc3 {[%emt 0:00:17]} Qf2+ {[%emt 0:00:02]} 69. Kb3 {[%emt 0:00:04]} g1=Q {[%emt 0:00:22]} 70. Qe8+ {[%emt 0:00:02]} Kd6 {[%emt 0:00:13]} 71. Qe7+ {[%emt 0:00:12]} Kc6 {[%emt 0:00:11]} 72. Be4# {[%emt 0:00:06]} 1-0